Cogmind - Beta 14 @@@ ROGUE MODE // 2025.01.02 @ 10:12:27 // Winter2021/Sauler Player: Demo Result: Destroyed by XI-HV5(R) with Subdweller Shrapnel Launcher Performance ------------- Evolutions (0) 0 Regions Visited (3) 600 Robots Destroyed (13) 65 Value Destroyed (237) 237 Prototype IDs (2) 40 Alien Tech Used (0) 0 Bonus (0) 0 TOTAL SCORE: 942 Bonus ------- None Cogmind --------- Core Integrity 0/250 Matter 229/400 Energy 200/200 System Corruption 3% Temperature Cool (0) Movement Treading (480) Ox4 Location -10/Subcaves Parts ------- > --- POWER (1) -------- Subdweller Power Source > --- PROPULSION (2) --- Light Treads > --- UTILITY (2) ------ Huge Storage Unit Medium Matter Pod > --- WEAPON (2) ------- Medium Laser > --- INVENTORY (25) --- Wheel Wheel Wheel Wheel Wheel Subdweller Monowheel Medium Storage Unit Large Storage Unit Medium Matter Pod (79) Medium Matter Pod (0) Sensor Array Signal Interpreter Seismic Detector Utility Shielding Subdweller Beam Cannon Assault Rifle Battle Rifle Blade Trap Blade Trap Blade Trap Peak State ------------ > --- POWER ------------ Subdweller Power Source > --- PROPULSION ------- Wheel Wheel > --- UTILITY ---------- Huge Storage Unit Improved Terrain Scanner > --- WEAPON ----------- Medium Laser Light Cannon > --- INVENTORY -------- Light Treads Wheel Wheel Wheel Wheel Wheel Subdweller Monowheel Medium Storage Unit Large Storage Unit Medium Matter Pod Medium Matter Pod Medium Matter Pod Sensor Array Signal Interpreter Seismic Detector Utility Shielding Subdweller Beam Cannon Assault Rifle Blade Trap Blade Trap Blade Trap [Rating: 12] Favorites ----------- Power Light Ion Engine Engine Light Ion Engine Propulsion Wheel Treads Light Treads Wheel Wheel Utility Huge Storage Unit Device Structural Scanner Storage Huge Storage Unit Weapon EM Pulse Gun Energy Gun EM Pulse Gun Ballistic Gun Assault Rifle Ballistic Cannon Light Cannon Build | -11 -10 -10 -10 ------- Run | Yrd Mat Min Sub Slots Evolved . | . . . . Power . | . . . . Propulsion . | . . . . Utility . | . . . . Weapon . | . . . . Parts Attached 18 | 8 2 1 7 Power 2 | 1 . . 1 Engine 2 | 1 . . 1 Core . | . . . . Reactor . | . . . . Propulsion 4 | 3 . . 1 Treads 1 | . . . 1 Leg . | . . . . Wheel 3 | 3 . . . Hover . | . . . . Flight . | . . . . Utility 7 | 2 2 1 2 Device 4 | 1 1 1 1 Storage 3 | 1 1 . 1 Processor . | . . . . Hackware . | . . . . Protection . | . . . . Artifact . | . . . . Weapon 5 | 2 . . 3 Energy Gun 3 | 1 . . 2 Energy Cannon . | . . . . Ballistic Gun 1 | 1 . . . Ballistic Cannon 1 | . . . 1 Launcher . | . . . . Special Weapon . | . . . . Impact Weapon . | . . . . Slashing Weapon . | . . . . Piercing Weapon . | . . . . Special Melee Weapon . | . . . . Unidentified Prototypes . | . . . . Parts Lost 7 | . . . 7 Power 1 | . . . 1 Propulsion 2 | . . . 2 Utility 2 | . . . 2 Weapon 2 | . . . 2 Highest Loss Streak 4 | . . . 4 To Critical Strikes . | . . . . Average Slot Usage (%) 94 | . 100 100 87 Engine 9 | . 14 14 4 Wheel 27 | . 28 28 27 Device 13 | . 14 14 12 Storage 14 | . 14 14 14 Energy Gun 15 | . 14 14 16 Ballistic Gun 8 | . 14 14 1 Ballistic Cannon 4 | . . . 10 Peak Build Rating 12 | 8 9 9 12 Average Rating 8 | 6 8 9 9 On Entrance 6 | . 7 9 9 Naked Turns . | . . . . Heaviest Build 91 | 13 88 88 91 Greatest Support 26 | 26 20 20 20 Greatest Overweight (x) 4 | 1 4 4 4 Average Overweight (x) 3 | . 3 4 4 Largest Inventory Capacity 25 | 8 25 25 25 Average Capacity 23 | 7 23 25 25 Most Carried 23 | 8 18 21 23 Average Carried 17 | 3 12 20 21 Final Capacity 25 | 8 25 25 25 Final Carried 21 | 7 18 21 20 Class Distribution -------------------- 100% | Mutant Dominant Class ---------------- Mutant | -10/Materials Mutant | -10/Mines Mutant | -10/Subcaves Resources | -11 -10 -10 -10 ----------- Run | Yrd Mat Min Sub Matter Collected 501 | 294 115 . 92 Remotely . | . . . . Salvage Created 373 | 204 50 . 119 Parts 30 | 16 6 . 8 Haulers Intercepted . | . . . . Recyclers Shooed . | . . . . Parts Field Recycled . | . . . . Retrieved Matter . | . . . . Parts Self-Destructed . | . . . . Prevented . | . . . . Kills | -11 -10 -10 -10 ------- Run | Yrd Mat Min Sub Combat Hostiles Destroyed 4 | . . . 4 Guns 1 | . . . 1 Cannons 3 | . . . 3 Classes Destroyed 5 | 2 2 . 1 Builder 2 | . 2 . . Tunneler 5 | 5 . . . Recycler 1 | 1 . . . Watcher 1 | . 1 . . Subdweller 4 | . . . 4 Best Kill Streak 4 | 4 2 . 2 Combat Bots Only 2 | . . . 2 Max Kills in Single Turn 2 | 1 2 . 1 Gunslinging . | . . . . Exploded . | . . . . Melee . | . . . . Uniques/NPCs Destroyed . | . . . . Combat | -11 -10 -10 -10 -------- Run | Yrd Mat Min Sub Hostile Shots Fired 22 | . . . 22 Missed 6 | . . . 6 Damage Taken 656 | . 127 . 529 Core 253 | . 97 . 156 Absorbed by Shields . | . . . . Core Remaining (%) 100 | 100 . . . Volleys Fired 39 | 8 3 . 28 Largest 2 | 2 2 . 2 Hottest 90 | 60 60 . 90 Shots Fired 79 | 16 7 . 56 Gun 66 | 16 7 . 43 Cannon 13 | . . . 13 Launcher . | . . . . Special . | . . . . Kinetic 32 | 8 3 . 21 Thermal 24 | . . . 24 Explosive . | . . . . Electromagnetic 23 | 8 4 . 11 Robot Hit Streak 8 | 6 8 . 7 Robot Miss Streak 1 | 1 1 . 1 Penetration Max . | . . . . Secondary Targets . | . . . . Shots Hit Robots 47 | 10 3 . 34 Core Hits 16 | 6 2 . 8 Critical Kills . | . . . . Critical Parts Destroyed . | . . . . Critical Strikes 2 | . . . 2 Burn 1 | . . . 1 Blast 1 | . . . 1 Melee Attacks . | . . . . Impact . | . . . . Slashing . | . . . . Piercing . | . . . . Sneak Attacks . | . . . . Combat Hostiles . | . . . . Follow-up Attacks . | . . . . Damage Inflicted 763 | 132 157 . 474 Guns 463 | 132 49 . 282 Cannons 192 | . . . 192 Explosions 108 | . 108 . . Melee . | . . . . Ramming . | . . . . Kinetic 258 | 66 . . 192 Thermal 320 | . 108 . 212 Explosive . | . . . . Electromagnetic 185 | 66 49 . 70 Impact . | . . . . Slashing . | . . . . Piercing . | . . . . Highest Corruption 3 | . 3 3 3 Average Corruption 2 | . 2 3 3 Corruption Purged . | . . . . Corruption Blocked . | . . . . Effects 18 | . 1 5 12 Message Errors 2 | . . . 2 Matter Fused 5 | . . 2 3 Heat Flow Errors 1 | . . 1 . Energy Discharges 1 | . . . 1 Parts Fused 1 | . . . 1 Data Loss (minor) 4 | . . 1 3 Data Loss (major) 2 | . . 1 1 Misfires 2 | . 1 . 1 Overload Shots . | . . . . Overflow Damage 58 | . 58 . . Projectiles . | . . . . Explosions 58 | . 58 . . Melee . | . . . . Knockbacks 2 | . . . 2 Impact . | . . . . Kinetic 2 | . . . 2 Secondary . | . . . . Self-Inflicted Damage 127 | . 127 . . Shots 2 | . 2 . . Rammed . | . . . . Targets Rammed . | . . . . Kicked . | . . . . Crushed . | . . . . Highest Temperature 242 | . 24 242 . Average Temperature 97 | . 19 122 . Received Heat Transfer . | . . . . Siege Activations . | . . . . Robots Corrupted . | . . . . Combat Hostiles . | . . . . Parts Fried . | . . . . Impact Corruptions . | . . . . Robots Melted . | . . . . Combat Hostiles . | . . . . Parts Melted . | . . . . Heat Transferred 753 | . 50 . 703 Parts Sabotaged . | . . . . Parts Stolen . | . . . . Parts Stripped . | . . . . Power Chain Reactions 1 | . 1 . . Alert | -11 -10 -10 -10 ------- Run | Yrd Mat Min Sub Peak Influence 80 | 30 80 31 . Initial 31 | . 19 31 . Average 29 | 14 33 31 . Maximum Alert Level . | . . . . Low Security (%) 100 | 100 100 100 . Level 1 . | . . . . Level 2 . | . . . . Level 3 . | . . . . Level 4 . | . . . . Level 5 . | . . . . High Security . | . . . . Max Security . | . . . . Squads Dispatched . | . . . . Investigation . | . . . . Extermination . | . . . . Reinforcement . | . . . . Assault . | . . . . Garrison . | . . . . Intercept . | . . . . Searches Triggered . | . . . . Construction Impeded . | . . . . Haulers Reinforced . | . . . . Active Scanning Responses . | . . . . Cargo Convoy Interrupts . | . . . . Stealth | -11 -10 -10 -10 --------- Run | Yrd Mat Min Sub Distress Signals . | . . . . Communications Jammed . | . . . . Distress Signals . | . . . . Times Spotted 6 | . 1 . 5 Peak Tracking Total 2 | . 1 . 2 Tactical Retreats . | . . . . Traps | -11 -10 -10 -10 ------- Run | Yrd Mat Min Sub Traps Triggered 3 | . 2 . 1 Indirectly . | . . . . Trap Hack Attempts . | . . . . Triggered . | . . . . Disarmed . | . . . . Reprogrammed . | . . . . Reused . | . . . . Traps Extracted . | . . . . Installed . | . . . . Triggered . | . . . . Most Traps Carried 3 | . . 3 3 Machines | -11 -10 -10 -10 ---------- Run | Yrd Mat Min Sub Machines Disabled 1 | . 1 . . Max in Single Turn 1 | . 1 . . Machines Repaired . | . . . . Machines Dismantled . | . . . . Machines Sabotaged . | . . . . Overloaded Fab Kills . | . . . . Hacking | -11 -10 -10 -10 --------- Run | Yrd Mat Min Sub Machines Accessed 3 | . 3 . . Terminals 2 | . 2 . . Fabricators . | . . . . Repair Stations . | . . . . Recycling Units 1 | . 1 . . Scanalyzers . | . . . . Garrison Access . | . . . . Total Hacks 10 | . 10 . . Successful 6 | . 6 . . Failed 4 | . 4 . . Catastrophic . | . . . . Database Lockouts . | . . . . Manual 4 | . 4 . . Terminals 7 | . 7 . . Fabricators . | . . . . Repair Stations . | . . . . Recycling Units 3 | . 3 . . Scanalyzers . | . . . . Garrison Access . | . . . . Terminal Hacks 4 | . 4 . . Part Schematic 2 | . 2 . . Prototype ID Bank 1 | . 1 . . Registered Components 1 | . 1 . . Fabricator Hacks . | . . . . Repair Station Hacks . | . . . . Recycling Unit Hacks 2 | . 2 . . Report Inventory 1 | . 1 . . Retrieve Components 1 | . 1 . . Scanalyzer . | . . . . Garrison Access Hacks . | . . . . Unauthorized Hacks . | . . . . Terminals . | . . . . Fabricators . | . . . . Repair Stations . | . . . . Recycling Units . | . . . . Scanalyzers . | . . . . Garrison Access . | . . . . Data Cores Recovered . | . . . . Used . | . . . . Hacking Detections 3 | . 3 . . Full Trace Events . | . . . . Feedback Events . | . . . . Feedback Blocked . | . . . . Robot Schematics Acquired . | . . . . Robots Built . | . . . . Authchips . | . . . . Time . | . . . . Total Robot Build Rating . | . . . . Part Schematics Acquired 2 | . 2 . . Parts Built . | . . . . Authchips . | . . . . Time . | . . . . Total Part Build Rating . | . . . . Parts Repaired . | . . . . Time . | . . . . Parts Recycled . | . . . . Recycled Matter . | . . . . Retrieved Matter . | . . . . Retrieved Components 3 | . 3 . . Parts Scanalyzed . | . . . . Part Schematics Acquired . | . . . . Parts Damaged . | . . . . Bothacking | -11 -10 -10 -10 ------------ Run | Yrd Mat Min Sub Used RIF Installer . | . . . . Robots Hacked . | . . . . Non-combat . | . . . . Combat . | . . . . Robot Hacks Applied . | . . . . Relay Couplers Released . | . . . . Fabnet Peak Effective % . | . . . . Robots Rewired . | . . . . Allies Hacked . | . . . . Hacks Repelled . | . . . . Allies | -11 -10 -10 -10 -------- Run | Yrd Mat Min Sub Total Allies . | . . . . Largest Group . | . . . . Highest-Rated Group . | . . . . Highest-Rated Ally . | . . . . Total Orders . | . . . . Ally Attacks . | . . . . Total Damage . | . . . . Kills . | . . . . Allies Corrupted . | . . . . Allies Melted . | . . . . Intel | -11 -10 -10 -10 ------- Run | Yrd Mat Min Sub Robot Analysis Total . | . . . . Derelict Logs Recovered 1 | . . . 1 Drone Launches . | . . . . Drone Recoveries . | . . . . Exploration | -11 -10 -10 -10 ------------- Run | Yrd Mat Min Sub Turns Passed 1392 | 121 367 348 556 Spaces Moved 704 | 79 242 62 321 Core 4 | 4 . . . Treads . | . . . . Legs . | . . . . Wheels 700 | 75 242 62 321 Hover . | . . . . Flight . | . . . . Fastest Speed 50 | 50 80 140 140 Average Speed 132 | 90 133 140 140 Slowest Speed 140 | 100 140 140 140 Overloaded Moves . | . . . . Propulsion Burnouts . | . . . . Robots Hopped . | . . . . Cave-ins Triggered . | . . . . Exploration Rate (%) 20 | 4 33 16 28 Regions Visited 3 Branch Regions 2 Pre-discovered Areas . | . . . . Known Exits Taken . | . . . . Unknown Exits Taken 3 | 1 1 1 . Scrap Searched . | . . . . Spaces Dug . | . . . . Terrain Destroyed 21 | . 21 . . Melee . | . . . . Projectile . | . . . . AOE 21 | . 21 . . Terrain Rammed . | . . . . Walls Destroyed . | . . . . Machines Disabled . | . . . . Actions | -11 -10 -10 -10 --------- Run | Yrd Mat Min Sub Total 1082 | 109 281 323 369 Wait 297 | 6 23 258 10 Move 701 | 78 241 61 321 Hop . | . . . . Pick Up 25 | 8 11 3 3 Fast Attach 8 | 7 . . 1 Attach 4 | . . . 4 Detach . | . . . . Swap 6 | 1 2 1 2 Drop 2 | 1 1 . . Fire 39 | 8 3 . 28 Melee . | . . . . Ram . | . . . . Kick . | . . . . Crush . | . . . . Escape Stasis . | . . . . Rewire . | . . . . Trap . | . . . . Miscellaneous . | . . . . Route ------- -11/Scrapyard -10/Materials -10/Mines -10/Subcaves (discovered 2 exits: [*Mat x2]) History --------- Turn | Location | Event 2 | -11/Scrapyard | Met Revision 17 9 | -11/Scrapyard | Discovered new exit (range 15) 122 | -11/Scrapyard | Entered Materials 301 | -10/Materials | Build established: Mutant 399 | -10/Materials | Discovered new exit (range 11) 489 | -10/Materials | Entered Mines 543 | -10/Mines | Found a hidden stash of uninstalled traps 729 | -10/Mines | Discovered new exit (range 5) 837 | -10/Mines | Entered Subcaves 838 | -10/Subcaves | Shifting Twisted Machinery released Sub. Beam Cannon 839 | -10/Subcaves | Learned Materials stockpile data 841 | -10/Subcaves | Shifting Twisted Machinery released Barrage Gun 938 | -10/Subcaves | Core integrity fell below 50% 1069 | -10/Subcaves | Discovered new exit (range 6) 1310 | -10/Subcaves | Discovered new exit (range 8) 1346 | -10/Subcaves | Shifting Twisted Machinery released Battle Rifle 1347 | -10/Subcaves | Shifting Twisted Machinery released Riot Gun 1393 | -10/Subcaves | Destroyed by XI-HV5(R) with Subdweller Shrapnel Launcher Last Messages --------------- 01309_ Acquired 14 matter. 01310_ Subatomizers dissect the Sub. Power Source. 01310_ EXIT=FOUND 01313_ Acquired Sub. Power Source. 01315_ Acquired 29 matter. 01345_ System corrupted: Matter fused (-6). Battle Rifle falls loose from the Twisted Machinery. Riot Gun falls loose from the Twisted Machinery. 01352_ Acquired Battle Rifle. 01365_ Imp. Terrain Scanner destroyed. 01366_ System corrupted: Component data lost. 01370_ Wheel destroyed. 01370_ FC-IV1(R) suffers critical hit (Blast). 01372_ Wheel destroyed. 01374_ FC-IV1(R) knocked back. 01383_ FC-IV1(R) destroyed. 01386_ T>X9O6CU9YE4PT#UTADJ,SSJ 01391_ Lgt. Cannon destroyed. Map ----- +----------------------------------------------------+ | ?????????????????????????????????????????????????? | | ?????????????????????????????????????????????????? | | ?????????????????????????????????????????????????? | | ?????????????????????????????????????????????????? | | ?????????????????????????????????????????????????? | | ?????????????????????????????????????????????????? | | ?????????????????????????????????????????????????? | | ?????????????????????????????????????????????????? | | ?????????????????????????????????????????????????? | | ?????????????????????????????????????????????????? | | ?????????????????????????????????????????????????? | | ?????????????????????????????????????????????????? | | ?????????????????????????????????????????????????? | | ???????????????? ? ??#???????????????????????????? | | ????????????????? ##???????????????????????????? | | ?????????????????# # ??????????????#????????#???? | | ?????????????????# " ???????????????????#???#??? | | ?????????????????# ??????????????????????????? | | ?????????????????# ?????????????????????????#? | | ?????????????????# ????????#????????#??????#? | | ?????????????????# ?????????????????????????? | | ???????????????#??# " ######????????????????#??? | | ??????????????????# ;; #???????#??????????## | | ???????????????""## #?####??????????#### | | ???????????????""" ;### ##########?#" | | ????????????????"""" @ ; ## #""#### | | ????????????????""## [R """" ## # "" | | ???????????????????# = " " " ### """ | | ???????????????????#" ;""" "##?# """ | | ???????????????????#" ; ;;""""""#??# ####""### | | ???????????????????#"## ##### """"[ #?###??####?? | | ???????????????????# ##???? " """ #????#??#??? | | ??????????????????? ????? ??""" """ ##??????#???? | | ?????????????????? ????? ????? ""##???????????? | | ????????????????? ???????? ????? ###????????????? | | ?????????????????????????????????##??#??????????#? | | ???????????????????????????????#?????????????????? | | ?????????????????????????????????????????#???#???? | | ?????????????????#???????????????????????????????? | | ??????????????????????????????#??????????????????? | | ?????????????????????????????????????????????????? | | ?????????????????????????????????????????????????? | | ?????????????????????????????????????????????????? | | ?????????????????????????????????????????????????? | | ?????????????????????????????????????????????????? | | ?????????????????????????????????????????????????? | | ?????????????????????????????????????????????????? | | ?????????????????????????????????????????????????? | | ?????????????????????????????????????????????????? | | ?????????????????????????????????????????????????? | +----------------------------------------------------+ Best States ------------- Heat Dissipation 25 Energy Generation 15 Energy Capacity 200 Matter Stores 300 Matter Capacity 400 Sight Range 16 Robot Scan Range 14 Terrain Scan Range 16 Terrain Scan Density 10 Evasion (%) 44 Recoil Reduction 1 Item Schematics ----------------- Wheel | -10/Materials | Hacked EM Pulse Gun | -10/Materials | Hacked Robot Schematics ------------------ None Fabricated ------------ Nothing Alien Tech Used ----------------- None Achievements -------------- None Challenges ------------ None Game ------ Seed ArmorVortexBrace Manual? 0 Play Time 00:08:45 Cumulative 110.0 hours Start 2025.01.02 @ 10:06:09 End 2025.01.02 @ 10:12:27 Sessions 1 Manual Loads 0 Difficulty Rogue Special Mode Winter2021/Sauler Game No. 132 Rogue 132 Adventurer 0 Explorer 0 Win Type - Total 1 Types 1/0/0/0/0/0/0/0/0 Lore% 47 Gallery% 65 Achievement% 51 Wizard Run 0 Options --------- Layout 1 ASCII 0 Keyboard 0 Movement Numpad Keybinds 0 Fullscreen 1 Font 24/Smallcaps Map View 50x35 Zoom Use 0% Tactical HUD 1 Map Filters NONE Filters NONE Steam 1 RUN: 363bf35f-26f7-4812-92c6-632ff7ffdbeb